[Event "*** Titled Tuesday Blitz"]
[Site "Chess.com"]
[Date "2020.02.04"]
[Round "6"]
[White "ehrenfeld"]
[Black "killer311"]
[Result "0-1"]
[WhiteElo "2476"]
[BlackElo "2287"]
[TimeControl "180+2"]
[EndTime "14:18:32 PST"]
[Termination "killer311 won by resignation"]

1. e4 {[%clk 0:03:01.9]} 1... c5 {[%clk 0:03:01]} 2. Nf3 {[%clk 0:03:02.1]} 2...
Nc6 {[%clk 0:03:02.1]} 3. Bb5 {[%clk 0:03:02.9]} 3... g6 {[%clk 0:03:01.7]} 4.
Nc3 {[%clk 0:02:56.2]} 4... Bg7 {[%clk 0:03:02.6]} 5. O-O {[%clk 0:02:54.4]}
5... e6 {[%clk 0:03:03.7]} 6. Bxc6 {[%clk 0:02:53.7]} 6... dxc6 {[%clk
0:02:59.4]} 7. e5 {[%clk 0:02:54.3]} 7... Ne7 {[%clk 0:02:59.4]} 8. Re1 {[%clk
0:02:52.8]} 8... O-O {[%clk 0:02:58.9]} 9. Ne4 {[%clk 0:02:53.4]} 9... b6 {[%clk
0:02:56.9]} 10. d3 {[%clk 0:02:53.8]} 10... Ba6 {[%clk 0:02:53.6]} 11. c4 {[%clk
0:02:50.7]} 11... Nf5 {[%clk 0:02:49.7]} 12. Bg5 {[%clk 0:02:50.9]} 12... Qc7
{[%clk 0:02:45.1]} 13. Qd2 {[%clk 0:02:28]} 13... Rad8 {[%clk 0:02:35.8]} 14.
Bxd8 {[%clk 0:02:26.7]} 14... Rxd8 {[%clk 0:02:36.3]} 15. b3 {[%clk 0:02:26.7]}
15... Bxe5 {[%clk 0:02:24]} 16. Nxe5 {[%clk 0:02:21.3]} 16... Qxe5 {[%clk
0:02:25.9]} 17. Qg5 {[%clk 0:02:21.3]} 17... Qd4 {[%clk 0:02:20.4]} 18. g4
{[%clk 0:02:06.5]} 18... h6 {[%clk 0:02:00.6]} 19. Qf6 {[%clk 0:01:48.3]} 19...
Ng7 {[%clk 0:01:43.1]} 20. Qf4 {[%clk 0:01:34.2]} 20... f5 {[%clk 0:01:37.6]}
21. Qxh6 {[%clk 0:01:16.6]} 21... fxe4 {[%clk 0:01:38.4]} 22. dxe4 {[%clk
0:01:12.8]} 22... Rf8 {[%clk 0:01:33.5]} 23. Qe3 {[%clk 0:00:57.8]} 23... Qxe3
{[%clk 0:01:29.6]} 24. Rxe3 {[%clk 0:00:58.2]} 24... Rd8 {[%clk 0:01:30.6]} 25.
Ree1 {[%clk 0:00:56.6]} 25... e5 {[%clk 0:01:29.9]} 26. Rad1 {[%clk 0:00:54.7]}
26... Rd4 {[%clk 0:01:22.1]} 27. Rxd4 {[%clk 0:00:54.8]} 27... cxd4 {[%clk
0:01:23.4]} 28. f3 {[%clk 0:00:48.2]} 28... Ne6 {[%clk 0:01:24.2]} 29. Kf2
{[%clk 0:00:49.1]} 29... Nf4 {[%clk 0:01:25.1]} 30. Rh1 {[%clk 0:00:48.5]} 30...
b5 {[%clk 0:01:22.3]} 31. cxb5 {[%clk 0:00:47.4]} 31... Bxb5 {[%clk 0:01:21.4]}
32. h4 {[%clk 0:00:47.8]} 32... c5 {[%clk 0:01:17]} 33. Ke1 {[%clk 0:00:48.2]}
33... c4 {[%clk 0:01:16.8]} 34. bxc4 {[%clk 0:00:48.8]} 34... Bxc4 {[%clk
0:01:17.7]} 35. Kd2 {[%clk 0:00:50]} 35... Be2 {[%clk 0:01:09.5]} 36. Rb1 {[%clk
0:00:45.7]} 36... Bxf3 {[%clk 0:01:10.4]} 37. Rb5 {[%clk 0:00:39.9]} 37... g5
{[%clk 0:01:02]} 38. Rxe5 {[%clk 0:00:37.1]} 38... gxh4 {[%clk 0:01:02.7]} 39.
Rf5 {[%clk 0:00:38.1]} 39... h3 {[%clk 0:01:01.9]} 0-1

[Event "*** Titled Tuesday Blitz"]
[Site "Chess.com"]
[Date "2020.02.04"]
[Round "6"]
[White "Terao90"]
[Black "dmosesov"]
[Result "0-1"]
[WhiteElo "2422"]
[BlackElo "2590"]
[TimeControl "180+2"]
[EndTime "14:18:38 PST"]
[Termination "dmosesov won by resignation"]

1. d4 {[%clk 0:03:01.9]} 1... Nf6 {[%clk 0:03:01.2]} 2. Nf3 {[%clk 0:03:02.6]}
2... c5 {[%clk 0:03:00.8]} 3. c3 {[%clk 0:03:00]} 3... b6 {[%clk 0:02:55.2]} 4.
Bg5 {[%clk 0:02:57.6]} 4... Bb7 {[%clk 0:02:49.4]} 5. e3 {[%clk 0:02:56.5]} 5...
e6 {[%clk 0:02:48.6]} 6. Nbd2 {[%clk 0:02:54.2]} 6... h6 {[%clk 0:02:47.8]} 7.
Bh4 {[%clk 0:02:54.6]} 7... Be7 {[%clk 0:02:45.3]} 8. Bd3 {[%clk 0:02:55.1]}
8... O-O {[%clk 0:02:36.1]} 9. O-O {[%clk 0:02:55.5]} 9... Nc6 {[%clk 0:02:32]}
10. a3 {[%clk 0:02:44.8]} 10... d6 {[%clk 0:02:29.3]} 11. Re1 {[%clk 0:02:43.5]}
11... cxd4 {[%clk 0:02:19]} 12. exd4 {[%clk 0:02:43.6]} 12... Nd5 {[%clk
0:02:16.1]} 13. Bg3 {[%clk 0:02:24.5]} 13... Nc7 {[%clk 0:02:15.4]} 14. h3
{[%clk 0:02:08.2]} 14... Kh8 {[%clk 0:02:04.3]} 15. Bc4 {[%clk 0:02:04.3]} 15...
a6 {[%clk 0:02:03.6]} 16. a4 {[%clk 0:02:02.9]} 16... Qd7 {[%clk 0:01:54.6]} 17.
Bb3 {[%clk 0:01:50.7]} 17... Rae8 {[%clk 0:01:49.6]} 18. Nc4 {[%clk 0:01:49.3]}
18... Nd5 {[%clk 0:01:45.4]} 19. Nfd2 {[%clk 0:01:46.2]} 19... f5 {[%clk
0:01:43.3]} 20. Bh2 {[%clk 0:01:42.8]} 20... b5 {[%clk 0:01:23.8]} 21. axb5
{[%clk 0:01:43]} 21... axb5 {[%clk 0:01:25.7]} 22. Ne3 {[%clk 0:01:43.9]} 22...
Nxe3 {[%clk 0:01:16.9]} 23. Rxe3 {[%clk 0:01:45.8]} 23... e5 {[%clk 0:01:14.3]}
24. dxe5 {[%clk 0:01:44.4]} 24... dxe5 {[%clk 0:01:15.7]} 25. Nf3 {[%clk
0:01:42.4]} 25... Qxd1+ {[%clk 0:01:12.4]} 26. Rxd1 {[%clk 0:01:44.3]} 26... e4
{[%clk 0:01:13.8]} 27. Nd4 {[%clk 0:01:37.8]} 27... Nxd4 {[%clk 0:01:13.5]} 28.
cxd4 {[%clk 0:01:36.5]} 28... f4 {[%clk 0:01:06.6]} 29. Ree1 {[%clk 0:01:36]}
29... Bd6 {[%clk 0:01:08]} 30. d5 {[%clk 0:01:36.6]} 30... Re7 {[%clk
0:00:54.6]} 31. Rd4 {[%clk 0:01:20.9]} 31... Rfe8 {[%clk 0:00:46.8]} 32. Bc2
{[%clk 0:01:05.2]} 32... e3 {[%clk 0:00:40]} 33. fxe3 {[%clk 0:01:02.9]} 33...
Bc5 {[%clk 0:00:41.1]} 34. Rxf4 {[%clk 0:00:58.3]} 34... Bxe3+ {[%clk
0:00:41.9]} 35. Rxe3 {[%clk 0:00:59.1]} 35... Rxe3 {[%clk 0:00:43.8]} 36. Rf7
{[%clk 0:00:52.2]} 36... Re1+ {[%clk 0:00:44.2]} 37. Kf2 {[%clk 0:00:52.6]}
37... Bxd5 {[%clk 0:00:45.5]} 38. Bd3 {[%clk 0:00:35.9]} 38... Bxf7 {[%clk
0:00:45]} 0-1

[Event "*** Titled Tuesday Blitz"]
[Site "Chess.com"]
[Date "2020.02.04"]
[Round "6"]
[White "Manukyan_Artak"]
[Black "Gogolev_Artemy"]
[Result "0-1"]
[WhiteElo "2340"]
[BlackElo "2513"]
[TimeControl "180+2"]
[EndTime "14:18:44 PST"]
[Termination "Gogolev_Artemy won by resignation"]

1. e4 {[%clk 0:03:01.9]} 1... e5 {[%clk 0:02:52]} 2. Nf3 {[%clk 0:03:02.1]} 2...
Nc6 {[%clk 0:02:52.9]} 3. d4 {[%clk 0:03:03.6]} 3... exd4 {[%clk 0:02:53.4]} 4.
Nxd4 {[%clk 0:03:05.5]} 4... Nf6 {[%clk 0:02:53.9]} 5. Nxc6 {[%clk 0:03:06.9]}
5... bxc6 {[%clk 0:02:54.1]} 6. e5 {[%clk 0:03:08.8]} 6... Qe7 {[%clk
0:02:50.4]} 7. Qe2 {[%clk 0:03:10.3]} 7... Nd5 {[%clk 0:02:51]} 8. c4 {[%clk
0:03:11.8]} 8... Ba6 {[%clk 0:02:46.1]} 9. g3 {[%clk 0:03:09]} 9... g6 {[%clk
0:02:39.1]} 10. Bg2 {[%clk 0:03:09.1]} 10... Bg7 {[%clk 0:02:40.3]} 11. O-O
{[%clk 0:03:05.6]} 11... O-O {[%clk 0:02:36.3]} 12. Re1 {[%clk 0:03:05.4]} 12...
Rfe8 {[%clk 0:02:33.2]} 13. Nd2 {[%clk 0:02:17.5]} 13... d6 {[%clk 0:02:22.6]}
14. f4 {[%clk 0:01:51.6]} 14... dxe5 {[%clk 0:01:53]} 15. fxe5 {[%clk
0:01:51.9]} 15... Nb4 {[%clk 0:01:48.5]} 16. Nf3 {[%clk 0:01:36.7]} 16... Qc5+
{[%clk 0:01:31.2]} 17. Be3 {[%clk 0:01:36.5]} 17... Qxc4 {[%clk 0:01:31.2]} 18.
Qxc4 {[%clk 0:01:36.2]} 18... Bxc4 {[%clk 0:01:31.2]} 19. Rec1 {[%clk
0:01:20.3]} 19... Bd5 {[%clk 0:01:19.8]} 20. Bd4 {[%clk 0:01:07]} 20... Nxa2
{[%clk 0:00:59.1]} 21. Rc5 {[%clk 0:01:02.1]} 21... Nb4 {[%clk 0:00:44.2]} 22.
Rca5 {[%clk 0:01:03]} 22... Nc2 {[%clk 0:00:44.2]} 23. Rd1 {[%clk 0:01:02.8]}
23... Nxd4 {[%clk 0:00:33.7]} 24. Rxd4 {[%clk 0:01:04.7]} 24... Reb8 {[%clk
0:00:24.6]} 25. b4 {[%clk 0:00:59.8]} 25... Bf8 {[%clk 0:00:21]} 26. Ra4 {[%clk
0:00:43]} 26... Bb3 {[%clk 0:00:19.9]} 27. Ra3 {[%clk 0:00:42.1]} 27... Bd5
{[%clk 0:00:21]} 28. Ra4 {[%clk 0:00:40.4]} 28... a5 {[%clk 0:00:22.4]} 29. Rxd5
{[%clk 0:00:13.6]} 29... cxd5 {[%clk 0:00:21.9]} 30. Nd4 {[%clk 0:00:13.7]}
30... Rxb4 {[%clk 0:00:20.5]} 31. Rxb4 {[%clk 0:00:14.3]} 31... axb4 {[%clk
0:00:21.3]} 32. Bxd5 {[%clk 0:00:16.2]} 32... Rd8 {[%clk 0:00:19.4]} 33. e6
{[%clk 0:00:16.4]} 33... Rxd5 {[%clk 0:00:19.7]} 0-1

[Event "*** Titled Tuesday Blitz"]
[Site "Chess.com"]
[Date "2020.02.04"]
[Round "6"]
[White "kosya4ok"]
[Black "IMTominho"]
[Result "0-1"]
[WhiteElo "2625"]
[BlackElo "2803"]
[TimeControl "180+2"]
[EndTime "14:18:46 PST"]
[Termination "IMTominho won by resignation"]

1. e4 {[%clk 0:03:01.9]} 1... c5 {[%clk 0:02:58.3]} 2. Nf3 {[%clk 0:03:02.7]}
2... e6 {[%clk 0:02:57.9]} 3. d4 {[%clk 0:03:03.8]} 3... cxd4 {[%clk 0:02:55.7]}
4. Nxd4 {[%clk 0:03:05.7]} 4... a6 {[%clk 0:02:56.5]} 5. Nc3 {[%clk 0:03:05.2]}
5... b5 {[%clk 0:02:56]} 6. Bd3 {[%clk 0:03:06.3]} 6... Bb7 {[%clk 0:02:52.8]}
7. O-O {[%clk 0:03:04.9]} 7... Nc6 {[%clk 0:02:45.3]} 8. Nxc6 {[%clk 0:02:55.4]}
8... Bxc6 {[%clk 0:02:47.2]} 9. Re1 {[%clk 0:02:56]} 9... Bc5 {[%clk 0:02:42.8]}
10. Be3 {[%clk 0:02:45]} 10... Bxe3 {[%clk 0:02:38.6]} 11. Rxe3 {[%clk
0:02:46.9]} 11... Ne7 {[%clk 0:02:35.7]} 12. Qh5 {[%clk 0:02:31.7]} 12... Ng6
{[%clk 0:02:31.7]} 13. a4 {[%clk 0:01:47.3]} 13... O-O {[%clk 0:02:24.8]} 14.
Rg3 {[%clk 0:01:39.5]} 14... Qe7 {[%clk 0:02:05.3]} 15. Rf1 {[%clk 0:01:24.1]}
15... bxa4 {[%clk 0:02:00.3]} 16. f4 {[%clk 0:01:21.5]} 16... Qb4 {[%clk
0:01:56.8]} 17. f5 {[%clk 0:01:13.4]} 17... a3 {[%clk 0:01:53]} 18. Rh3 {[%clk
0:00:53.2]} 18... h6 {[%clk 0:01:53]} 19. fxg6 {[%clk 0:00:41.1]} 19... fxg6
{[%clk 0:01:51]} 20. Qxg6 {[%clk 0:00:39.4]} 20... Rxf1+ {[%clk 0:01:38.6]} 21.
Kxf1 {[%clk 0:00:33]} 21... Rf8+ {[%clk 0:01:31.7]} 22. Ke2 {[%clk 0:00:31.8]}
22... axb2 {[%clk 0:01:24.6]} 23. e5 {[%clk 0:00:25.8]} 23... Qf4 {[%clk
0:01:18.5]} 24. Qh7+ {[%clk 0:00:22.8]} 24... Kf7 {[%clk 0:01:16.9]} 25. Rg3
{[%clk 0:00:16.8]} 25... Qxe5+ {[%clk 0:01:10.2]} 26. Kd2 {[%clk 0:00:14.7]}
26... Ke8 {[%clk 0:01:07.9]} 27. Be2 {[%clk 0:00:12.4]} 27... Qd4+ {[%clk
0:00:48.2]} 28. Qd3 {[%clk 0:00:12.9]} 28... Qb4 {[%clk 0:00:43.4]} 29. Bh5+
{[%clk 0:00:08.5]} 29... Kd8 {[%clk 0:00:40.3]} 30. Rg4 {[%clk 0:00:04.4]} 30...
b1=Q {[%clk 0:00:38.1]} 31. Rxb4 {[%clk 0:00:05.4]} 31... Qxb4 {[%clk 0:00:40]}
32. g3 {[%clk 0:00:06.3]} 32... a5 {[%clk 0:00:35.5]} 33. Kc1 {[%clk 0:00:06.3]}
33... Rf5 {[%clk 0:00:34.5]} 34. Nb1 {[%clk 0:00:07]} 34... Rxh5 {[%clk
0:00:34.7]} 0-1

[Event "*** Titled Tuesday Blitz"]
[Site "Chess.com"]
[Date "2020.02.04"]
[Round "6"]
[White "Kosche007"]
[Black "ShahMatKanal"]
[Result "0-1"]
[WhiteElo "2310"]
[BlackElo "2510"]
[TimeControl "180+2"]
[EndTime "14:18:49 PST"]
[Termination "ShahMatKanal won on time"]

1. e4 {[%clk 0:03:01.9]} 1... c5 {[%clk 0:03:00.7]} 2. Nf3 {[%clk 0:03:02.7]}
2... Nc6 {[%clk 0:03:01.6]} 3. d4 {[%clk 0:03:03.6]} 3... cxd4 {[%clk
0:03:02.7]} 4. Nxd4 {[%clk 0:03:05.5]} 4... e5 {[%clk 0:03:02.4]} 5. Nb5 {[%clk
0:03:06.2]} 5... a6 {[%clk 0:03:03.8]} 6. Nd6+ {[%clk 0:03:06.8]} 6... Bxd6
{[%clk 0:03:05.3]} 7. Qxd6 {[%clk 0:03:08.4]} 7... Qf6 {[%clk 0:03:07]} 8. Qd1
{[%clk 0:03:08.9]} 8... Qg6 {[%clk 0:03:05.2]} 9. Nc3 {[%clk 0:03:08.8]} 9... d5
{[%clk 0:03:02]} 10. Nxd5 {[%clk 0:03:08.1]} 10... Qxe4+ {[%clk 0:02:59.4]} 11.
Be3 {[%clk 0:03:07.9]} 11... Nd4 {[%clk 0:02:55]} 12. Nc7+ {[%clk 0:03:08.8]}
12... Ke7 {[%clk 0:02:55]} 13. Rc1 {[%clk 0:02:56.7]} 13... Bg4 {[%clk
0:02:20.4]} 14. Qd3 {[%clk 0:02:55.7]} 14... Qxd3 {[%clk 0:02:17.2]} 15. Bxd3
{[%clk 0:02:56.6]} 15... Rd8 {[%clk 0:02:05.3]} 16. h3 {[%clk 0:02:57]} 16...
Bc8 {[%clk 0:01:56.4]} 17. Na8 {[%clk 0:01:41.2]} 17... b5 {[%clk 0:01:36.2]}
18. Nb6 {[%clk 0:01:35]} 18... Bb7 {[%clk 0:01:33.7]} 19. O-O {[%clk 0:01:21.3]}
19... Nf6 {[%clk 0:01:15.3]} 20. a4 {[%clk 0:01:08]} 20... e4 {[%clk 0:01:02.6]}
21. Rfe1 {[%clk 0:00:40.7]} 21... Rhe8 {[%clk 0:00:47.9]} 22. Bf1 {[%clk
0:00:28.3]} 22... Kf8 {[%clk 0:00:45.4]} 23. axb5 {[%clk 0:00:25.3]} 23... Nxb5
{[%clk 0:00:41.8]} 24. Red1 {[%clk 0:00:18.4]} 24... h6 {[%clk 0:00:28.1]} 25.
c4 {[%clk 0:00:15.2]} 25... Nc7 {[%clk 0:00:26.2]} 26. b4 {[%clk 0:00:13.5]}
26... Ne6 {[%clk 0:00:25.6]} 27. b5 {[%clk 0:00:08.4]} 27... axb5 {[%clk
0:00:26.6]} 28. cxb5 {[%clk 0:00:10.3]} 28... Rxd1 {[%clk 0:00:26.3]} 29. Rxd1
{[%clk 0:00:10.7]} 29... Ke7 {[%clk 0:00:26.4]} 30. Nc4 {[%clk 0:00:09.4]} 30...
Rb8 {[%clk 0:00:24.9]} 31. Ne5 {[%clk 0:00:07.8]} 31... Rc8 {[%clk 0:00:21.6]}
32. Ra1 {[%clk 0:00:07.2]} 32... Ra8 {[%clk 0:00:19.8]} 33. Rc1 {[%clk
0:00:05.4]} 33... Nd5 {[%clk 0:00:19.6]} 0-1

[Event "*** Titled Tuesday Blitz"]
[Site "Chess.com"]
[Date "2020.02.04"]
[Round "6"]
[White "mitrabhaa"]
[Black "vugarrasulov"]
[Result "0-1"]
[WhiteElo "2565"]
[BlackElo "2901"]
[TimeControl "180+2"]
[EndTime "14:18:51 PST"]
[Termination "vugarrasulov won on time"]

1. d4 {[%clk 0:02:51.6]} 1... Nf6 {[%clk 0:03:00.5]} 2. Nf3 {[%clk 0:01:45.9]}
2... e6 {[%clk 0:03:01.1]} 3. g3 {[%clk 0:01:46.5]} 3... c5 {[%clk 0:03:00.7]}
4. Bg2 {[%clk 0:01:46.7]} 4... Nc6 {[%clk 0:03:01.9]} 5. O-O {[%clk 0:01:47.1]}
5... d5 {[%clk 0:03:02.5]} 6. dxc5 {[%clk 0:01:47.7]} 6... Bxc5 {[%clk
0:03:02.9]} 7. c4 {[%clk 0:01:48.9]} 7... d4 {[%clk 0:02:57.2]} 8. Nbd2 {[%clk
0:01:48.2]} 8... e5 {[%clk 0:02:53.9]} 9. b4 {[%clk 0:01:47.3]} 9... Bxb4 {[%clk
0:02:47.8]} 10. Nxe5 {[%clk 0:01:48.2]} 10... O-O {[%clk 0:02:29.2]} 11. Nxc6
{[%clk 0:01:46.6]} 11... bxc6 {[%clk 0:02:29.9]} 12. Nb3 {[%clk 0:01:46.5]}
12... Bc3 {[%clk 0:02:29.2]} 13. Rb1 {[%clk 0:01:47]} 13... Bf5 {[%clk
0:02:29.7]} 14. Ba3 {[%clk 0:01:48.1]} 14... Bxb1 {[%clk 0:02:25.4]} 15. Bxf8
{[%clk 0:01:32.5]} 15... Bxa2 {[%clk 0:02:18.6]} 16. Bc5 {[%clk 0:01:33.2]}
16... Nd7 {[%clk 0:02:15.2]} 17. Ba3 {[%clk 0:01:28.4]} 17... Ne5 {[%clk
0:02:08.1]} 18. Qc2 {[%clk 0:01:28.9]} 18... Bxb3 {[%clk 0:02:07]} 19. Qxb3
{[%clk 0:01:29.4]} 19... Rb8 {[%clk 0:02:06]} 20. Qa4 {[%clk 0:01:25.3]} 20...
Qa5 {[%clk 0:01:42.7]} 21. Qxa5 {[%clk 0:01:24.1]} 21... Bxa5 {[%clk 0:01:44.6]}
22. Bd6 {[%clk 0:01:24.9]} 22... Re8 {[%clk 0:01:46]} 23. Bxe5 {[%clk
0:01:21.7]} 23... Rxe5 {[%clk 0:01:47.9]} 24. Rb1 {[%clk 0:01:22.7]} 24... g6
{[%clk 0:01:38.6]} 25. Bxc6 {[%clk 0:01:22.8]} 25... Rxe2 {[%clk 0:01:38.8]} 26.
Rb7 {[%clk 0:01:20.3]} 26... d3 {[%clk 0:01:35.8]} 27. Rd7 {[%clk 0:01:20.7]}
27... d2 {[%clk 0:01:36.5]} 28. Kg2 {[%clk 0:01:17.1]} 28... Bb6 {[%clk
0:01:37.7]} 29. h4 {[%clk 0:01:12.4]} 29... Rxf2+ {[%clk 0:01:38.3]} 30. Kh3
{[%clk 0:01:13.7]} 30... h5 {[%clk 0:01:39.3]} 31. Rd5 {[%clk 0:01:10.4]} 31...
Kg7 {[%clk 0:01:38.5]} 32. c5 {[%clk 0:01:11.3]} 32... Bxc5 {[%clk 0:01:39.2]}
33. Ba4 {[%clk 0:01:10.9]} 33... Bb6 {[%clk 0:01:39.1]} 34. Rd7 {[%clk
0:01:11.6]} 34... a5 {[%clk 0:01:35]} 35. Rd5 {[%clk 0:01:10.6]} 35... Kf8
{[%clk 0:01:30.9]} 36. Rb5 {[%clk 0:01:10.9]} 36... Bc7 {[%clk 0:01:30.5]} 37.
Rb7 {[%clk 0:01:10.9]} 37... Bd6 {[%clk 0:01:28.8]} 38. Rd7 {[%clk 0:01:10.9]}
38... Bb4 {[%clk 0:01:29.9]} 39. Bb3 {[%clk 0:01:11.7]} 39... Rf3 {[%clk
0:01:30.1]} 40. Ba4 {[%clk 0:01:11.5]} 40... Ra3 {[%clk 0:01:27.4]} 41. Bb5
{[%clk 0:01:12.4]} 41... Ra1 {[%clk 0:01:27.9]} 42. Be2 {[%clk 0:01:11.9]} 42...
Re1 {[%clk 0:01:29]} 43. Bf3 {[%clk 0:01:11.5]} 43... a4 {[%clk 0:01:28.8]} 44.
Rd4 {[%clk 0:01:12.1]} 44... a3 {[%clk 0:01:29.7]} 45. Rxb4 {[%clk 0:01:12.9]}
45... a2 {[%clk 0:01:31.3]} 0-1

[Event "*** Titled Tuesday Blitz"]
[Site "Chess.com"]
[Date "2020.02.04"]
[Round "6"]
[White "mbojan"]
[Black "DenishevM"]
[Result "1-0"]
[WhiteElo "2748"]
[BlackElo "2520"]
[TimeControl "180+2"]
[EndTime "14:18:52 PST"]
[Termination "mbojan won by resignation"]

1. e4 {[%clk 0:03:01.9]} 1... c5 {[%clk 0:03:00.3]} 2. Nf3 {[%clk 0:03:03]} 2...
d6 {[%clk 0:03:01.3]} 3. d4 {[%clk 0:03:04.3]} 3... cxd4 {[%clk 0:03:03.2]} 4.
Nxd4 {[%clk 0:03:06]} 4... Nf6 {[%clk 0:03:04.8]} 5. Nc3 {[%clk 0:03:07.7]} 5...
a6 {[%clk 0:03:06.1]} 6. Bg5 {[%clk 0:03:08.8]} 6... e6 {[%clk 0:03:07.2]} 7. f4
{[%clk 0:03:10.1]} 7... Qb6 {[%clk 0:03:08.2]} 8. Qd2 {[%clk 0:03:11.4]} 8...
Qxb2 {[%clk 0:03:09.3]} 9. Rb1 {[%clk 0:03:13]} 9... Qa3 {[%clk 0:03:10.6]} 10.
e5 {[%clk 0:03:14.6]} 10... dxe5 {[%clk 0:03:09.8]} 11. fxe5 {[%clk 0:03:16.5]}
11... h6 {[%clk 0:03:11.4]} 12. Bh4 {[%clk 0:03:14.9]} 12... g5 {[%clk
0:03:12.3]} 13. exf6 {[%clk 0:03:11.8]} 13... gxh4 {[%clk 0:03:13.4]} 14. Ne4
{[%clk 0:03:05.5]} 14... Qxa2 {[%clk 0:02:48.4]} 15. Rd1 {[%clk 0:03:06.1]}
15... Qd5 {[%clk 0:02:48.1]} 16. Qe3 {[%clk 0:03:06.3]} 16... Qe5 {[%clk
0:02:45.6]} 17. Be2 {[%clk 0:02:56.8]} 17... Nc6 {[%clk 0:02:35.4]} 18. Nxc6
{[%clk 0:02:54]} 18... bxc6 {[%clk 0:02:37.3]} 19. O-O {[%clk 0:02:20.4]} 19...
c5 {[%clk 0:02:06.4]} 20. Bf3 {[%clk 0:02:09.4]} 20... Bb7 {[%clk 0:02:05.9]}
21. Qd3 {[%clk 0:01:32.4]} 21... Qd4+ {[%clk 0:01:58.2]} 22. Qxd4 {[%clk
0:01:33.6]} 22... cxd4 {[%clk 0:02:00.1]} 23. Rxd4 {[%clk 0:01:34.9]} 23... Bd5
{[%clk 0:01:47.9]} 24. c4 {[%clk 0:01:26.4]} 24... Bxe4 {[%clk 0:01:46.5]} 25.
Rxe4 {[%clk 0:01:28.3]} 25... Bc5+ {[%clk 0:01:43.2]} 26. Kh1 {[%clk 0:01:28.9]}
26... O-O-O {[%clk 0:01:43.2]} 27. Rxh4 {[%clk 0:01:20.9]} 27... Rd4 {[%clk
0:01:36.3]} 28. Rh5 {[%clk 0:01:21.3]} 28... Rxc4 {[%clk 0:01:33.8]} 29. Be2
{[%clk 0:01:22.4]} 29... Rc3 {[%clk 0:01:32.6]} 30. Bxa6+ {[%clk 0:01:21.2]}
30... Kc7 {[%clk 0:01:34.1]} 31. Be2 {[%clk 0:01:16.6]} 31... Bd4 {[%clk
0:01:24.3]} 32. Rh4 {[%clk 0:01:10.6]} 32... e5 {[%clk 0:01:21.3]} 33. Bh5
{[%clk 0:01:09.9]} 33... Kd6 {[%clk 0:01:15.1]} 34. Bxf7 {[%clk 0:01:02.3]}
34... Rf8 {[%clk 0:01:15.9]} 35. Bg6 {[%clk 0:00:58.5]} 35... Be3 {[%clk
0:01:05.6]} 36. f7 {[%clk 0:00:50.7]} 36... Rc1 {[%clk 0:00:56.7]} 37. Rxc1
{[%clk 0:00:50.9]} 37... Bxc1 {[%clk 0:00:58.6]} 38. g3 {[%clk 0:00:50.9]} 38...
Ke7 {[%clk 0:00:58.6]} 39. Ra4 {[%clk 0:00:49.3]} 39... Kf6 {[%clk 0:00:54.8]}
40. Ra6+ {[%clk 0:00:48]} 40... Kg7 {[%clk 0:00:53.3]} 41. Kg2 {[%clk
0:00:40.5]} 41... Bg5 {[%clk 0:00:49.5]} 42. Re6 {[%clk 0:00:31.8]} 42... Bf6
{[%clk 0:00:49.5]} 43. Bh5 {[%clk 0:00:33.3]} 43... Rb8 {[%clk 0:00:50.7]} 44.
Re8 {[%clk 0:00:32.9]} 1-0

[Event "*** Titled Tuesday Blitz"]
[Site "Chess.com"]
[Date "2020.02.04"]
[Round "6"]
[White "Kobalia"]
[Black "PowerThinking2650"]
[Result "1-0"]
[WhiteElo "2642"]
[BlackElo "2404"]
[TimeControl "180+2"]
[EndTime "14:18:54 PST"]
[Termination "Kobalia won on time"]

1. e4 {[%clk 0:03:01.9]} 1... e5 {[%clk 0:03:01]} 2. Nf3 {[%clk 0:03:02.2]} 2...
Nc6 {[%clk 0:03:02.1]} 3. Bb5 {[%clk 0:03:02.6]} 3... a6 {[%clk 0:03:03.3]} 4.
Ba4 {[%clk 0:03:03.5]} 4... Nf6 {[%clk 0:03:04.2]} 5. O-O {[%clk 0:03:03.8]}
5... Be7 {[%clk 0:03:05.1]} 6. d3 {[%clk 0:03:04]} 6... b5 {[%clk 0:03:05.8]} 7.
Bb3 {[%clk 0:03:04.1]} 7... d6 {[%clk 0:03:07.1]} 8. a3 {[%clk 0:03:04]} 8...
O-O {[%clk 0:03:07.2]} 9. Nc3 {[%clk 0:03:04.2]} 9... Bg4 {[%clk 0:03:01.3]} 10.
Be3 {[%clk 0:03:03.6]} 10... Nd4 {[%clk 0:03:02.3]} 11. Bxd4 {[%clk 0:03:04.4]}
11... exd4 {[%clk 0:03:03.7]} 12. Nd5 {[%clk 0:03:05.3]} 12... c5 {[%clk
0:02:55.9]} 13. h3 {[%clk 0:03:03.5]} 13... Be6 {[%clk 0:02:56.7]} 14. Nxf6+
{[%clk 0:03:02.8]} 14... Bxf6 {[%clk 0:02:57.6]} 15. Bxe6 {[%clk 0:03:03.2]}
15... fxe6 {[%clk 0:02:58.7]} 16. a4 {[%clk 0:03:03.9]} 16... b4 {[%clk
0:02:59.4]} 17. b3 {[%clk 0:02:50.8]} 17... Ra7 {[%clk 0:02:42.7]} 18. Qe2
{[%clk 0:02:48.7]} 18... Raf7 {[%clk 0:02:34.5]} 19. e5 {[%clk 0:02:34.3]} 19...
Bxe5 {[%clk 0:02:29.9]} 20. Nxe5 {[%clk 0:02:34.6]} 20... dxe5 {[%clk
0:02:30.7]} 21. Qxe5 {[%clk 0:02:35.6]} 21... Qd5 {[%clk 0:02:26.2]} 22. Rae1
{[%clk 0:02:30.9]} 22... Rf6 {[%clk 0:02:00.3]} 23. Qxd5 {[%clk 0:02:31]} 23...
exd5 {[%clk 0:02:01.1]} 24. Re5 {[%clk 0:02:31.9]} 24... Rf5 {[%clk 0:01:26.2]}
25. Rxf5 {[%clk 0:02:32.5]} 25... Rxf5 {[%clk 0:01:26.5]} 26. Re1 {[%clk
0:02:34]} 26... Kf7 {[%clk 0:01:24.6]} 27. g3 {[%clk 0:02:34.2]} 27... c4 {[%clk
0:01:00.8]} 28. Kg2 {[%clk 0:02:11.8]} 28... Rf6 {[%clk 0:00:52.7]} 29. Re5
{[%clk 0:01:47.1]} 29... cxb3 {[%clk 0:00:51.2]} 30. cxb3 {[%clk 0:01:47.3]}
30... Rd6 {[%clk 0:00:49.1]} 31. a5 {[%clk 0:01:42.2]} 31... Kf6 {[%clk
0:00:36.6]} 32. f4 {[%clk 0:01:42.4]} 32... h6 {[%clk 0:00:34.2]} 33. Kf3 {[%clk
0:01:41.9]} 33... g5 {[%clk 0:00:14.8]} 34. h4 {[%clk 0:01:41.1]} 34... gxh4
{[%clk 0:00:12.3]} 35. gxh4 {[%clk 0:01:41.5]} 35... Rc6 {[%clk 0:00:05.2]} 36.
Rxd5 {[%clk 0:01:40.6]} 36... Rc3 {[%clk 0:00:04.2]} 37. Ke4 {[%clk 0:01:40.9]}
37... Rxb3 {[%clk 0:00:04.6]} 38. Rd6+ {[%clk 0:01:41.9]} 38... Ke7 {[%clk
0:00:05.1]} 39. Rxh6 {[%clk 0:01:38.4]} 39... Ra3 {[%clk 0:00:03.9]} 40. Rxa6
{[%clk 0:01:38]} 40... b3 {[%clk 0:00:03.1]} 41. Rb6 {[%clk 0:01:38.2]} 41...
Rxa5 {[%clk 0:00:03.9]} 42. Rxb3 {[%clk 0:01:38.7]} 42... Rh5 {[%clk 0:00:04.6]}
43. Rb7+ {[%clk 0:01:37.4]} 43... Kd6 {[%clk 0:00:05.2]} 44. Rb6+ {[%clk
0:01:26.3]} 44... Kc5 {[%clk 0:00:03.8]} 45. Rb3 {[%clk 0:01:12.4]} 1-0